Workbook

Sheet SAŽETAK
A1: GODIŠNJI IZVJEŠTAJ O IZVRŠENJU FINANCIJSKOG PLANA 2023. GODINE - MEDICINSKA ŠKOLA U RIJECI
C2: OPĆI DIO
A3: SAŽETAK RAČUNA PRIHODA I RASHODA I RAČUNA FINANCIRANJA
A5: A. RAČUN PRIHODA I RASHODA
A6: Oznaka | B6: Ostvarenje preth. 2022. godine. (1) | C6: Izvorni plan / Rebalans (2) | D6: Ostvarenje 2023. godine (3.) | E6: Indeks 3. /1. (4) | F6: Indeks 3./2. (5)
A7: A. RAČUN PRIHODA I RASHODA
A8: 6 Prihodi poslovanja | B8: 2323572.71 | C8: 3364856.9 | D8: 3570651.73 | E8: =+D8/B8*100 -> 153.6707552 | F8: =+D8/C8*100 -> 106.1160054
A9: 7 Prihodi od prodaje nefinancijske imovine | B9: 0 | C9: 0 | D9: 0 | E9: 0 | F9: 0
A10: UKUPNO PRIHODI | B10: =+B8+B9 -> 2323572.71 | C10: =+C8+C9 -> 3364856.9 | D10: =+D8+D9 -> 3570651.73 | E10: =+D10/B10*100 -> 153.6707552 | F10: =+D10/C10*100 -> 106.1160054
A11: 3 Rashodi poslovanja | B11: 2316551.71 | C11: 2528496.89 | D11: 2776605.54 | E11: =+D11/B11*100 -> 119.8594242 | F11: =+D11/C11*100 -> 109.8124958
A12: 4 Rashodi za nefinancijsku imovinu | B12: 15945.49 | C12: 1341522.58 | D12: 1235709.27 | E12: =+D12/B12*100 -> 7749.584804 | F12: =+D12/C12*100 -> 92.11244659
A13: UKUPNO RASHODI | B13: =+B11+B12 -> 2332497.2 | C13: =+C11+C12 -> 3870019.47 | D13: =+D11+D12 -> 4012314.81 | E13: =+D13/B13*100 -> 172.0179904 | F13: =+D13/C13*100 -> 103.6768637
A14: RAZLIKA - VIŠAK/MANJAK (A) | B14: =+B10-B13 -> -8924.49 | C14: =+C10-C13 -> -505162.57 | D14: =+D10-D13 -> -441663.08 | E14: =+D14/B14*100 -> 4948.888732 | F14: =+D14/C14*100 -> 87.42989014
A18: B. RAČUN FINANCIRANJA
A19: Oznaka | B19: Ostvarenje preth. 2022. godine. (1) | C19: Izvorni plan / Rebalans (2) | D19: Ostvarenje 2023. godine (3.) | E19: Indeks 3./1. (4) | F19: Indeks 3./2. (5)
A20: B. RAČUN PRIHODA I PRIMITAKA
A21: 8 Primici od financijske imovine | B21: 0 | C21: 520000 | D21: 430332.69 | E21: 0 | F21: =+D21/C21*100 -> 82.75628654
A22: 5 Izdaci za financ.im. i otplate zajmova | B22: 0 | C22: 0 | D22: 0 | E22: 0 | F22: 0
A23: NETO ZADUŽIVANJE/FINANCIRANJE (B) | B23: 0 | C23: =+C21 -> 520000 | D23: =+D21 -> 430332.69 | E23: 0 | F23: =+D23/C23*100 -> 82.75628654
A26: C. PRENESENA SREDSTVA IZ PRETHODNE GODINE
B27: Ostvarenje preth. 2022. godine. (1) | C27: Izvorni plan / Rebalans (2) | D27: Ostvarenje 2023. godine (3.) | E27: Indeks 3./1. (4) | F27: Indeks 3./2. (5)
A28: PRENESENA SREDSTVA ( C) | B28: =+B29-B30 -> -6912.93 | C28: =+C29-C30 -> -15837.43 | D28: =+D29-D30 -> -15837.43 | E28: =+D28/B28*100 -> 229.09866 | F28: =+D28/C28*100 -> 100
A29: Prenesena raspoloživa sredstva iz prethodne godine | B29: =3235.28+14049.64+1392.65 -> 18677.57 | C29: 15316.8 | D29: 15316.8 | E29: =+D29/B29*100 -> 82.0063852 | F29: =+D29/C29*100 -> 100
A30: Preneseni manjak iz prethodne godine | B30: 25590.5 | C30: 31154.23 | D30: 31154.23 | E30: =+D30/B30*100 -> 121.7413884 | F30: =+D30/C30*100 -> 100
A31: D. PRIJENOS SREDSTAVA U SLIJEDEĆE RAZDOBLJE
A34: Oznaka | B34: Rezultat 2022. (1) | C34: Izvorni plan / Rebalans (2) | D34: Rezultat 2023. (3) | E34: Indeks 3./1. (4) | F34: Indeks 3./2. (5.)
A35: D. PRIJENOS SREDSTAVA U SLIJEDEĆE RAZDOBLJE
A37: VIŠAK/MANJAK (A) +/- NETO (B)+ PRENESENA SREDSTVA ( C ) | B37: =+B38-B39 -> -15837.43 | C37: =+C38-C39 -> -15837.43 | D37: =+D38-D39 -> -27167.82 | E37: =+D37/B37*100 -> 171.5418474 | F37: =+D37/C37*100 -> 171.5418474
A38: VIŠAK | B38: 15316.8 | C38: 15316.8 | D38: 464605.35 | E38: =+D38/B38*100 -> 3033.305586 | F38: =+D38/C38*100 -> 3033.305586 | K38: 3
A39: MANJAK | B39: 31154.23 | C39: 31154.23 | D39: =457240.68+34532.49 -> 491773.17 | E39: =+D39/B39*100 -> 1578.511714 | F39: =+D39/C39*100 -> 1578.511714

Sheet Račun prihoda i rashoda
A1: I. OPĆI DIO
A2: A. RAČUN PRIHODA I RASHODA
A4: PRIHODI POSLOVANJA PREMA EKONOMSKOJ KLASIFIKACIJI
A5: Oznaka | B5: Ostvarenje/Izvršenje 2022. | C5: Izvorni plan / Rebalans 2023. | D5: Ostvarenje/Izvršenje 2023. | E5: Indeks | F5: Indeks
A6: 1 | B6: 2 | C6: 3 | D6: 4 | E6: 5=4/2*100 | F6: 6=4/3*100
A7: 6 Prihodi poslovanja | B7: =+B8+B16+B19+B22+B28 -> 2323572.71 | C7: 3364856.9 | D7: =+D8+D16+D19+D22+D28 -> 3570651.73 | E7: =+D7/B7*100 -> 153.6707552 | F7: =+D7/C7*100 -> 106.1160054
A8: 63 Pomoći iz inozemstva i od subjekata unutar općeg proračuna | B8: 2120922.48 | C8: 2416072.81 | D8: 2621652.21 | E8: 123.61 | F8: 108.51
A9: 632 Pomoći od međunarodnih organizacija te institucija i tijela EU | B9: 269.18
A10: 6323 Tekuće pomoći od institucija i tijela EU | B10: 269.18
A11: 636 Pomoći proračunskim korisnicima iz proračuna koji im nije nadležan | B11: 2120653.3 | C11: 2177141.06 | D11: 2424426.12 | E11: 114.32 | F11: 111.36
A12: 6361 Tekuće pomoći proračunskim korisnicima iz proračuna koji im nije nadležan | B12: 2119349.88 | C12: 2177008.34 | D12: 2423106.89 | E12: 114.33 | F12: 111.3
A13: 6362 Kapitalne pomoći proračunskim korisnicima iz proračuna koji im nije nadležan | B13: 1303.42 | C13: 132.72 | D13: 1319.23 | E13: 101.21 | F13: 993.99
A14: 638 Pomoći temeljem prijenosa EU sredstava | C14: 238931.75 | D14: 197226.09 | F14: 82.54
A15: 6382 Kapitalne pomoći temeljem prijenosa EU sredstava | C15: 238931.75 | D15: 197226.09 | F15: 82.54
A16: 64 Prihodi od imovine | B16: 0.1 | C16: 2 | D16: 5.11 | E16: 5110 | F16: 255.5
A17: 641 Prihodi od financijske imovine | B17: 0.1 | C17: 2 | D17: 5.11 | E17: 5110 | F17: 255.5
A18: 6413 Kamate na oročena sredstva i depozite po viđenju | B18: 0.1 | C18: 2 | D18: 5.11 | E18: 5110 | F18: 255.5
A19: 65 Prihodi od upravnih i administrativnih pristojbi, pristojbi po posebnim propisima i naknada | B19: 26319.2 | C19: 26650 | D19: 29368.22 | E19: 111.58 | F19: 110.2
A20: 652 Prihodi po posebnim propisima | B20: 26319.2 | C20: 26650 | D20: 29368.22 | E20: 111.58 | F20: 110.2
A21: 6526 Ostali nespomenuti prihodi | B21: 26319.2 | C21: 26650 | D21: 29368.22 | E21: 111.58 | F21: 110.2
A22: 66 Prihodi od prodaje proizvoda i robe te pruženih usluga i prihodi od donacija te povrati po protestiranim jamstvima | B22: 20177.31 | C22: 17598.82 | D22: 18029.83 | E22: 89.36 | F22: 102.45
A23: 661 Prihodi od prodaje proizvoda i robe te pruženih usluga | B23: 18920.7 | C23: 14970.02 | D23: 15401.02 | E23: 81.4 | F23: 102.88
A24: 6615 Prihodi od pruženih usluga | B24: 18920.7 | C24: 14970.02 | D24: 15401.02 | E24: 81.4 | F24: 102.88
A25: 663 Donacije od pravnih i fizičkih osoba izvan općeg proračuna i povrat donacija po protestiranim jamstvima | B25: 1256.61 | C25: 2628.8 | D25: 2628.81 | E25: 209.2 | F25: 100
A26: 6631 Tekuće donacije | B26: 729.97 | C26: 1240.07 | D26: 1240.08 | E26: 169.88 | F26: 100
A27: 6632 Kapitalne donacije | B27: 526.64 | C27: 1388.73 | D27: 1388.73 | E27: 263.7 | F27: 100
A28: 67 Prihodi iz nadležnog proračuna i od HZZO-a temeljem ugovornih obveza | B28: =+B29 -> 156153.62 | C28: 904533.27 | D28: =901670.58-74.22 -> 901596.36 | E28: =+D28/B28*100 -> 577.3778155 | F28: =+D28/C28*100 -> 99.67531211
A29: 671 Prihodi iz nadležnog proračuna za financiranje redovne djelatnosti proračunskih korisnika | B29: =+B30 -> 156153.62 | C29: 904533.27 | D29: =901670.58-74.22 -> 901596.36 | E29: =+D29/B29*100 -> 577.3778155 | F29: =+D29/C29*100 -> 99.67531211
A30: 6711 Prihodi iz nadležnog proračuna za financiranje rashoda poslovanja | B30: =60049.97+96103.65 -> 156153.62 | C30: 327551.15 | D30: =324688.46-74.22 -> 324614.24 | E30: =+D30/B30*100 -> 207.8813415 | F30: 99.13
A31: 6712 Prihodi iz nadležnog proračuna za financiranje rashoda za nabavu nefinancijske imovine | C31: 576982.12 | D31: 576982.12 | F31: 100
A32: SVEUKUPNO PRIHODI | B32: =+B7 -> 2323572.71 | C32: 3364856.9 | D32: =+D7 -> 3570651.73 | E32: =+D32/B32*100 -> 153.6707552 | F32: =+D32/C32*100 -> 106.1160054
A35: RASHODI POSLOVANJA PREMA EKONOMSKOJ KLASIFIKACIJI
A38: Oznaka | B38: Ostvarenje/Izvršenje 2022. | C38: Izvorni plan / Rebalans 2023. | D38: Ostvarenje/Izvršenje 2023. | E38: Indeks | F38: Indeks
A39: 1 | B39: 2 | C39: 3 | D39: 4 | E39: 5=4/2*100 | F39: 6=4/3*100
A40: 3 Rashodi poslovanja | B40: 2316551.71 | C40: 2528496.89 | D40: 2776605.54 | E40: 119.86 | F40: 109.81
A41: 31 Rashodi za zaposlene | B41: 2099475.51 | C41: 2135687.87 | D41: 2381984.21 | E41: 113.46 | F41: 111.53
A42: 311 Plaće (Bruto) | B42: 1730829.04 | C42: 1773186.7 | D42: 1963351.14 | E42: 113.43 | F42: 110.72
A43: 3111 Plaće za redovan rad | B43: 1703454.91 | C43: 1748686.7 | D43: 1926917.05 | E43: 113.12 | F43: 110.19
A44: 3113 Plaće za prekovremeni rad | B44: 27374.13 | C44: 24500 | D44: 36434.09 | E44: 133.1 | F44: 148.71
A45: 312 Ostali rashodi za zaposlene | B45: 81602.43 | C45: 74180.66 | D45: 92929.77 | E45: 113.88 | F45: 125.27
A46: 3121 Ostali rashodi za zaposlene | B46: 81602.43 | C46: 74180.66 | D46: 92929.77 | E46: 113.88 | F46: 125.27
A47: 313 Doprinosi na plaće | B47: 287044.04 | C47: 288320.51 | D47: 325703.3 | E47: 113.47 | F47: 112.97
A48: 3132 Doprinosi za obvezno zdravstveno osiguranje | B48: 286473.81 | C48: 287565.78 | D48: 325669.94 | E48: 113.68 | F48: 113.25
A49: 3133 Doprinosi za obvezno osiguranje u slučaju nezaposlenosti | B49: 570.23 | C49: 754.73 | D49: 33.36 | E49: 5.85 | F49: 4.42
A50: 32 Materijalni rashodi | B50: 204571.95 | C50: 387668.97 | D50: 386981.18 | E50: 189.17 | F50: 99.82
A51: 321 Naknade troškova zaposlenima | B51: 69449.73 | C51: 79260.2 | D51: 82500.44 | E51: 118.79 | F51: 104.09
A52: 3211 Službena putovanja | B52: 15990.95 | C52: 11566.74 | D52: 20099.67 | E52: 125.69 | F52: 173.77
A53: 3212 Naknade za prijevoz, za rad na terenu i odvojeni život | B53: 52198.31 | C53: 66615.63 | D53: 61708.01 | E53: 118.22 | F53: 92.63
A54: 3213 Stručno usavršavanje zaposlenika | B54: 1142.61 | C54: 799.11 | D54: 675.56 | E54: 59.12 | F54: 84.54
A55: 3214 Ostale naknade troškova zaposlenima | B55: 117.86 | C55: 278.72 | D55: 17.2 | E55: 14.59 | F55: 6.17
A56: 322 Rashodi za materijal i energiju | B56: 67121.63 | C56: 119716.22 | D56: 112399.47 | E56: 167.46 | F56: 93.89
A57: 3221 Uredski materijal i ostali materijalni rashodi | B57: 15455.76 | C57: 12645.68 | D57: 14769.44 | E57: 95.56 | F57: 116.79
A58: 3222 Materijal i sirovine | B58: 10717.28 | C58: 13636.35 | D58: 8897 | E58: 83.02 | F58: 65.24
A59: 3223 Energija | B59: 36081.9 | C59: 87712.85 | D59: 84484.37 | E59: 234.15 | F59: 96.32
A60: 3224 Materijal i dijelovi za tekuće i investicijsko održavanje | B60: 4065.66 | C60: 2796.61 | D60: 2585.18 | E60: 63.59 | F60: 92.44
A61: 3225 Sitni inventar i auto gume | B61: 295.57 | C61: 2327.48 | D61: 1121.68 | E61: 379.5 | F61: 48.19
A62: 3227 Službena, radna i zaštitna odjeća i obuća | B62: 505.46 | C62: 597.25 | D62: 541.8 | E62: 107.19 | F62: 90.72
A63: 323 Rashodi za usluge | B63: 51595.5 | C63: 178756.52 | D63: 183132.86 | E63: 354.94 | F63: 102.45
A64: 3231 Usluge telefona, pošte i prijevoza | B64: 4246.99 | C64: 4117.45 | D64: 4044.51 | E64: 95.23 | F64: 98.23
A65: 3232 Usluge tekućeg i investicijskog održavanja | B65: 11727.4 | C65: 112909.53 | D65: 115468.67 | E65: 984.61 | F65: 102.27
A66: 3233 Usluge promidžbe i informiranja | C66: 763.15 | D66: 764.4 | F66: 100.16
A67: 3234 Komunalne usluge | B67: 22554.24 | C67: 25216.79 | D67: 27486.38 | E67: 121.87 | F67: 109
A68: 3235 Zakupnine i najamnine | B68: 1876.64 | C68: 2057.2 | D68: 1348.87 | E68: 71.88 | F68: 65.57
A69: 3236 Zdravstvene i veterinarske usluge | B69: 3487.12 | C69: 3508.12 | D69: 2986.32 | E69: 85.64 | F69: 85.13
A70: 3237 Intelektualne i osobne usluge | B70: 3633.96 | C70: 13327.49 | D70: 7524.1 | E70: 207.05 | F70: 56.46
A71: 3238 Računalne usluge | B71: 3627.39 | C71: 4006.23 | D71: 4486.1 | E71: 123.67 | F71: 111.98
A72: 3239 Ostale usluge | B72: 441.76 | C72: 12850.56 | D72: 19023.51 | E72: 4306.3 | F72: 148.04
A73: 324 Naknade troškova osobama izvan radnog odnosa | B73: 888.1 | C73: 1542.67 | D73: 1177.39 | E73: 132.57 | F73: 76.32
A74: 3241 Naknade troškova osobama izvan radnog odnosa | B74: 888.1 | C74: 1542.67 | D74: 1177.39 | E74: 132.57 | F74: 76.32
A75: 329 Ostali nespomenuti rashodi poslovanja | B75: 15516.99 | C75: 8393.36 | D75: 7771.02 | E75: 50.08 | F75: 92.59
A76: 3291 Naknade za rad predstavničkih i izvršnih tijela, povjerenstava i slično | B76: 206.25 | C76: 543.57 | D76: 543.57 | E76: 263.55 | F76: 100
A77: 3292 Premije osiguranja | C77: 515.33
A78: 3293 Reprezentacija | C78: 100 | D78: 195.55 | F78: 195.55
A79: 3294 Članarine i norme | B79: 33.18 | C79: 35 | D79: 35 | E79: 105.49 | F79: 100
A80: 3295 Pristojbe i naknade | B80: 6953.02 | C80: 5235.85 | D80: 5276.21 | E80: 75.88 | F80: 100.77
A81: 3296 Troškovi sudskih postupaka | B81: 6882.67 | C81: 1000 | D81: 497.71 | E81: 7.23 | F81: 49.77
A82: 3299 Ostali nespomenuti rashodi poslovanja | B82: 1441.87 | C82: 963.61 | D82: 1222.98 | E82: 84.82 | F82: 126.92
A83: 34 Financijski rashodi | B83: 11258.59 | C83: 2048.14 | D83: 4356.08 | E83: 38.69 | F83: 212.68
A84: 343 Ostali financijski rashodi | B84: 11258.59 | C84: 2048.14 | D84: 4356.08 | E84: 38.69 | F84: 212.68
A85: 3431 Bankarske usluge i usluge platnog prometa | B85: 926.22 | C85: 634.53 | D85: 2425.29 | E85: 261.85 | F85: 382.22
A86: 3433 Zatezne kamate | B86: 10332.37 | C86: 1413.61 | D86: 1930.79 | E86: 18.69 | F86: 136.59
A87: 37 Naknade građanima i kućanstvima na temelju osiguranja i druge naknade | B87: 1245.66 | C87: 727.09 | D87: 919.25 | E87: 73.8 | F87: 126.43
A88: 372 Ostale naknade građanima i kućanstvima iz proračuna | B88: 1245.66 | C88: 727.09 | D88: 919.25 | E88: 73.8 | F88: 126.43
A89: 3722 Naknade građanima i kućanstvima u naravi | B89: 1245.66 | C89: 727.09 | D89: 919.25 | E89: 73.8 | F89: 126.43
A90: 38 Ostali rashodi | C90: 2364.82 | D90: 2364.82 | F90: 100
A91: 381 Tekuće donacije | C91: 2364.82 | D91: 2364.82 | F91: 100
A92: 3812 Tekuće donacije u naravi | C92: 2364.82 | D92: 2364.82 | F92: 100
A93: 4 Rashodi za nabavu nefinancijske imovine | B93: 15945.49 | C93: 1341522.58 | D93: 1235709.27 | E93: 7749.58 | F93: 92.11
A94: 42 Rashodi za nabavu proizvedene dugotrajne imovine | B94: 15945.49 | C94: 455506.53 | D94: 458749.14 | E94: 2876.98 | F94: 100.71
A95: 422 Postrojenja i oprema | B95: 14262.13 | C95: 454542 | D95: 457200.37 | E95: 3205.69 | F95: 100.58
A96: 4221 Uredska oprema i namještaj | B96: 670.25 | C96: 32628.51 | D96: 18259.56 | E96: 2724.29 | F96: 55.96
A97: 4223 Oprema za održavanje i zaštitu | B97: 2209.83 | C97: 257.5 | D97: 837.5 | E97: 37.9 | F97: 325.24
A98: 4224 Medicinska i laboratorijska oprema | B98: 6101.98 | C98: 290582.04 | D98: 364492.44 | E98: 5973.35 | F98: 125.44
A99: 4227 Uređaji, strojevi i oprema za ostale namjene | B99: 5280.07 | C99: 131073.95 | D99: 73610.87 | E99: 1394.13 | F99: 56.16
A100: 424 Knjige, umjetnička djela i ostale izložbene vrijednosti | B100: 1683.36 | C100: 464.53 | D100: 1548.77 | E100: 92 | F100: 333.41
A101: 4241 Knjige | B101: 1683.36 | C101: 464.53 | D101: 1548.77 | E101: 92 | F101: 333.41
A102: 426 Nematerijalna proizvedena imovina | C102: 500
A103: 4262 Ulaganja u računalne programe | C103: 500
A104: 45 Rashodi za dodatna ulaganja na nefinancijskoj imovini | C104: 886016.05 | D104: 776960.13 | F104: 87.69
A105: 451 Dodatna ulaganja na građevinskim objektima | C105: 886016.05 | D105: 776960.13 | F105: 87.69
A106: 4511 Dodatna ulaganja na građevinskim objektima | C106: 886016.05 | D106: 776960.13 | F106: 87.69
A107: SVEUKUPNO RASHODI | B107: 2332497.2 | C107: 3870019.47 | D107: 4012314.81 | E107: 172.02 | F107: 103.68

Sheet Prihodi i rashodi po izvorima
A1: I. OPĆI DIO
A2: A. RAČUN PRIHODA I RASHODA
A4: PRIHODI POSLOVANJA PREMA IZVORIMA FINANCIRANJA
A5: Oznaka | B5: Ostvarenje/Izvršenje 2022. | C5: Izvorni plan / Rebalans 2023. | D5: Ostvarenje/Izvršenje 2023. | E5: Indeks | F5: Indeks
A6: 1 | B6: 2 | C6: 3 | D6: 4 | E6: 5=4/2*100 | F6: 6=4/3*100
A7: Izvor: 1 OPĆI PRIHODI I PRIMICI | B7: 16324.91 | C7: 738261.57 | D7: 736687.58 | E7: 4512.66 | F7: 99.79
A8: Izvor: 11 Opći prihodi i primici | B8: 16324.91 | C8: 615664.52 | D8: 613307.78 | E8: 3756.88 | F8: 99.62
A9: Izvor: 18 Prenesena sredstva - opći prihodi i primici | C9: 122597.05 | D9: 123379.8 | F9: 100.64
A10: Izvor: 3 VLASTITI PRIHODI | B10: 18920.8 | C10: 14972.02 | D10: 15406.13 | E10: 81.42 | F10: 102.9
A11: Izvor: 32 Vlastiti prihodi - proračunski korisnici | B11: 18920.8 | C11: 14972.02 | D11: 15406.13 | E11: 81.42 | F11: 102.9
A12: Izvor: 4 PRIHODI ZA POSEBNE NAMJENE | B12: =+B13+B14 -> 166147.91 | C12: 192074.11 | D12: =+D13+D14 -> 194277 | E12: =+D12/B12*100 -> 116.9301498 | F12: =+D12/C12*100 -> 101.1468959
A13: Izvor: 43 Prihodi za posebne namjene - proračunski korisnici | B13: 26319.2 | C13: 26650 | D13: 29368.22 | E13: 111.58 | F13: 110.2
A14: Izvor: 44 Prihodi za decentralizirane funkcije | B14: =43725.06+96103.65 -> 139828.71 | C14: 165424.11 | D14: =164983-74.22 -> 164908.78 | E14: =+D14/B14*100 -> 117.9362808 | F14: =+D14/C14*100 -> 99.68847951
A15: Izvor: 5 POMOĆI | B15: 2120922.48 | C15: 2416920.4 | D15: 2621652.21 | E15: 123.61 | F15: 108.47
A16: Izvor: 51 Pomoći | C16: 847.59
A17: Izvor: 52 Pomoći - proračunski korisnici | B17: 2120922.48 | C17: 2416072.81 | D17: 2621652.21 | E17: 123.61 | F17: 108.51
A18: Izvor: 6 DONACIJE | B18: 1256.61 | C18: 2628.8 | D18: 2628.81 | E18: 209.2 | F18: 100
A19: Izvor: 62 Donacije - proračunski korisnici | B19: 1256.61 | C19: 2628.8 | D19: 2628.81 | E19: 209.2 | F19: 100
A20: SVEUKUPNO PRIHODI | B20: =+B7+B10+B12+B15+B18 -> 2323572.71 | C20: 3364856.9 | D20: =+D7+D10+D12+D15+D18 -> 3570651.73 | E20: =+D20/B20*100 -> 153.6707552 | F20: =+D20/C20*100 -> 106.1160054
A23: RASHODI POSLOVANJA PREMA IZVORIMA FINANCIRANJA
A25: Oznaka | B25: Ostvarenje/Izvršenje 2022. | C25: Izvorni plan / Rebalans 2023. | D25: Ostvarenje/Izvršenje 2023. | E25: Indeks | F25: Indeks
A26: 1 | B26: 2 | C26: 3 | D26: 4 | E26: 5=4/2*100 | F26: 6=4/3*100
A27: Izvor: 1 OPĆI PRIHODI I PRIMICI | B27: 16564.98 | C27: 739261.57 | D27: 736687.58 | E27: 4447.26 | F27: 99.65
A28: Izvor: 11 Opći prihodi i primici | B28: 16564.98 | C28: 615664.52 | D28: 613307.78 | E28: 3702.44 | F28: 99.62
A29: Izvor: 18 Prenesena sredstva - opći prihodi i primici | C29: 123597.05 | D29: 123379.8 | F29: 99.82
A30: Izvor: 3 VLASTITI PRIHODI | B30: 14864.62 | C30: 22263.48 | D30: 21743.4 | E30: 146.28 | F30: 97.66
A31: Izvor: 32 Vlastiti prihodi - proračunski korisnici | B31: 11629.35 | C31: 14972.02 | D31: 14451.94 | E31: 124.27 | F31: 96.53
A32: Izvor: 38 Prenesena sredstva - vlastiti prihodi proračunskih korisnika | B32: 3235.27 | C32: 7291.46 | D32: 7291.46 | E32: 225.37 | F32: 100
A33: Izvor: 4 PRIHODI ZA POSEBNE NAMJENE | B33: 172341.94 | C33: 199689.63 | D33: 201307.16 | E33: 116.81 | F33: 100.81
A34: Izvor: 43 Prihodi za posebne namjene - proračunski korisnici | B34: 18703.66 | C34: 26650 | D34: 28782.86 | E34: 153.89 | F34: 108
A35: Izvor: 44 Prihodi za decentralizirane funkcije | B35: 139588.64 | C35: 165424.11 | D35: 164908.78 | E35: 118.14 | F35: 99.69
A36: Izvor: 48 Prenesena sredstva - namjenski prihodi | B36: 14049.64 | C36: 7615.52 | D36: 7615.52 | E36: 54.2 | F36: 100
A37: Izvor: 5 POMOĆI | B37: 2127469.04 | C37: 2386175.99 | D37: 2592707.18 | E37: 121.87 | F37: 108.66
A38: Izvor: 51 Pomoći | C38: 847.59
A39: Izvor: 52 Pomoći - proračunski korisnici | B39: 2126076.39 | C39: 2384918.58 | D39: 2592297.36 | E39: 121.93 | F39: 108.7
A40: Izvor: 58 Prenesena sredstva - pomoći | B40: 1392.65 | C40: 409.82 | D40: 409.82 | E40: 29.43 | F40: 100
A41: Izvor: 6 DONACIJE | B41: 1256.62 | C41: 2628.8 | D41: 2628.81 | E41: 209.2 | F41: 100
A42: Izvor: 62 Donacije - proračunski korisnici | B42: 1256.62 | C42: 2628.8 | D42: 2628.81 | E42: 209.2 | F42: 100
A43: Izvor: 8 NAMJENSKI PRIMICI | C43: 520000 | D43: 457240.68 | F43: 87.93
A44: Izvor: 83 Namjenski primici-proračunski korisnici | C44: 520000 | D44: 457240.68 | F44: 87.93
A45: SVEUKUPNO RASHODI | B45: 2332497.2 | C45: 3870019.47 | D45: 4012314.81 | E45: 172.02 | F45: 103.68

Sheet Rashodi prema funkcijskoj klasi
A2: I. OPĆI DIO
A4: A. RAČUN PRIHODA I RASHODA
A6: RASHODI PREMA FUNKCIJSKOJ KLASIFIKACIJI
A7: Oznaka | B7: Ostvarenje/Izvršenje 2022. | C7: Izvorni plan / Rebalans 2023. | D7: Ostvarenje/Izvršenje 2023. | E7: Indeks | F7: Indeks
A8: 1 | B8: 2 | C8: 3 | D8: 4 | E8: 5=4/2*100 | F8: 6=4/3*100
A9: SVEUKUPNO RASHODI I IZDACI | B9: 2332497.2 | C9: 3870019.47 | D9: 4012314.81 | E9: 172.02 | F9: 103.68
A10: 09 Obrazovanje | B10: =+B11+B12 -> 2332497.2 | C10: =+C11+C12 -> 3870019.47 | D10: =+D11+D12 -> 4012314.81 | E10: =+D10/B10*100 -> 172.0179904 | F10: =+D10/C10*100 -> 103.6768637
A11: 092 Srednjoškolsko obrazovanje | B11: 2332257.1 | C11: 3869407.9 | D11: 4011703.24 | E11: 172.01 | F11: 103.68
A12: 098 Usluge obrazovanja koje nisu drugdje svrstane | B12: 240.1 | C12: 611.57 | D12: 611.57 | E12: 254.71 | F12: 100

Sheet Račun financiranja
A2: I. OPĆI DIO
A4: B. RAČUN FINANCIRANJA PREMA EKONOMSKOJ KLASIFIKACIJI
A6: Oznaka | B6: Ostvarenje/Izvršenje 2022. | C6: Izvorni plan / Rebalans 2023. | D6: Ostvarenje/Izvršenje 2023. | E6: Indeks | F6: Indeks
A7: 1 | B7: 2 | C7: 3 | D7: 4 | E7: 5=4/2*100 | F7: 6=4/3*100
A8: B. RAČUN FINANCIRANJA
A9: 8 Primici od financijske imovine i zaduživanja | C9: 520000 | D9: 430332.69 | F9: 82.76
A10: 84 Primici od zaduživanja | C10: 520000 | D10: 430332.69 | F10: 82.76
A11: 844 Primljeni krediti i zajmovi od kreditnih i ostalih financijskih institucija izvan javnog sektora | C11: 520000 | D11: 430332.69 | F11: 82.76
A12: 8443 Primljeni krediti od tuzemnih kreditnih institucija izvan javnog sektora | C12: 520000 | D12: 430332.69 | F12: 82.76
A13: SVEUKUPNO PRIMICI | C13: 520000 | D13: 430332.69 | F13: 82.76

Sheet Račun financiranja po izvorima
A2: I. OPĆI DIO
A4: B. RAČUN FINANCIRANJA PREMA IZVORIMA FINANCIRANJA
A6: Oznaka | B6: Ostvarenje/Izvršenje 2022. | C6: Izvorni plan / Rebalans 2023. | D6: Ostvarenje/Izvršenje 2023. | E6: Indeks | F6: Indeks
A7: 1 | B7: 2 | C7: 3 | D7: 4 | E7: 5=4/2*100 | F7: 6=4/3*100
A8: B. RAČUN FINANCIRANJA
A9: Izvor: 8 NAMJENSKI PRIMICI | C9: 520000 | D9: 430332.69 | F9: 82.76
A10: Izvor: 83 Namjenski primici-proračunski korisnici | C10: 520000 | D10: 430332.69 | F10: 82.76
A11: SVEUKUPNO PRIMICI | C11: 520000 | D11: 430332.69 | F11: 82.76

Sheet POSEBNI DIO
A2: II. POSEBNI DIO
A5: Oznaka | B5: Izvorni plan / Rebalans 2023. | C5: Ostvarenje/Izvršenje 2023. | D5: Indeks
A6: 1 | B6: 2 | C6: 3 | D6: 4=3/2*100
A7: SVEUKUPNO RASHODI I IZDACI | B7: 3870019.47 | C7: 4012314.81 | D7: 103.68
A8: 17546 MEDICINSKA ŠKOLA RIJEKA | B8: 3870019.47 | C8: 4012314.81 | D8: 103.68
A9: Program: 5306 Obilježavanje postignuća učenika i nastavnika | B9: 611.57 | C9: 611.57 | D9: 100
A10: A 530605 Natjecanja i smotre | B10: 611.57 | C10: 611.57 | D10: 100
A11: Izvor: 11 Opći prihodi i primici | B11: 611.57 | C11: 611.57 | D11: 100
A12: 32 Materijalni rashodi | B12: 611.57 | C12: 611.57 | D12: 100
A13: 3221 Uredski materijal i ostali materijalni rashodi | C13: 16
A14: 3222 Materijal i sirovine | C14: 52
A15: 3291 Naknade za rad predstavničkih i izvršnih tijela, povjerenstava i slično | C15: 543.57
A16: Program: 5501 Srednjoškolsko obrazovanje | B16: 2507256.97 | C16: 2758569.95 | D16: 110.02
A17: A 550101 Osiguravanje uvjeta rada | B17: 2402159.92 | C17: 2653690.15 | D17: 110.47
A18: Izvor: 11 Opći prihodi i primici | B18: 19000 | C18: 19000 | D18: 100
A19: 32 Materijalni rashodi | B19: 19000 | C19: 19000 | D19: 100
A20: 3212 Naknade za prijevoz, za rad na terenu i odvojeni život
A21: 3221 Uredski materijal i ostali materijalni rashodi
A22: 3222 Materijal i sirovine
A23: 3223 Energija | C23: 19000
A24: Izvor: 18 Prenesena sredstva - opći prihodi i primici | B24: 21000 | C24: 21000 | D24: 100
A25: 32 Materijalni rashodi | B25: 21000 | C25: 21000 | D25: 100
A26: 3212 Naknade za prijevoz, za rad na terenu i odvojeni život | C26: 1000
A27: 3223 Energija | C27: 20000
A28: Izvor: 32 Vlastiti prihodi - proračunski korisnici | B28: 14972.02 | C28: 14451.94 | D28: 96.53
A29: 31 Rashodi za zaposlene | B29: 2500 | C29: 3770.27 | D29: 150.81
A30: 3121 Ostali rashodi za zaposlene | C30: 3770.27
A31: 32 Materijalni rashodi | B31: 12372.02 | C31: 10672.68 | D31: 86.26
A32: 3211 Službena putovanja | C32: 10572.68
A33: 3237 Intelektualne i osobne usluge
A34: 3241 Naknade troškova osobama izvan radnog odnosa | C34: 100
A35: 34 Financijski rashodi
A36: 3433 Zatezne kamate
A37: 37 Naknade građanima i kućanstvima na temelju osiguranja i druge naknade | B37: 100 | C37: 8.99 | D37: 8.99
A38: 3722 Naknade građanima i kućanstvima u naravi | C38: 8.99
A39: Izvor: 38 Prenesena sredstva - vlastiti prihodi proračunskih korisnika | B39: 7291.46 | C39: 7291.46 | D39: 100
A40: 31 Rashodi za zaposlene | B40: 500 | C40: 500 | D40: 100
A41: 3121 Ostali rashodi za zaposlene | C41: 500
A42: 32 Materijalni rashodi | B42: 6791.46 | C42: 6791.46 | D42: 100
A43: 3211 Službena putovanja | C43: 1158.4
A44: 3221 Uredski materijal i ostali materijalni rashodi | C44: 1256.51
A45: 3232 Usluge tekućeg i investicijskog održavanja | C45: 2104.83
A46: 3237 Intelektualne i osobne usluge | C46: 2271.72
A47: Izvor: 43 Prihodi za posebne namjene - proračunski korisnici | B47: 23753.35 | C47: 28508.69 | D47: 120.02
A48: 32 Materijalni rashodi | B48: 23543.71 | C48: 26508.29 | D48: 112.59
A49: 3211 Službena putovanja | C49: 1120.5
A50: 3213 Stručno usavršavanje zaposlenika | C50: 540.06
A51: 3214 Ostale naknade troškova zaposlenima | C51: 17.2
A52: 3221 Uredski materijal i ostali materijalni rashodi | C52: 3850.98
A53: 3222 Materijal i sirovine | C53: 3512.2
A54: 3223 Energija | C54: 6.33
A55: 3224 Materijal i dijelovi za tekuće i investicijsko održavanje | C55: 885.4
A56: 3225 Sitni inventar i auto gume | C56: 314.71
A57: 3231 Usluge telefona, pošte i prijevoza
A58: 3232 Usluge tekućeg i investicijskog održavanja | C58: 1124.93
A59: 3233 Usluge promidžbe i informiranja | C59: 498.95
A60: 3234 Komunalne usluge | C60: 2223.88
A61: 3235 Zakupnine i najamnine | C61: 1348.87
A62: 3236 Zdravstvene i veterinarske usluge | C62: 709.8
A63: 3237 Intelektualne i osobne usluge | C63: 422.36
A64: 3238 Računalne usluge | C64: 2405.47
A65: 3239 Ostale usluge | C65: 5810.44
A66: 3241 Naknade troškova osobama izvan radnog odnosa | C66: 213.85
A67: 3293 Reprezentacija | C67: 195.55
A68: 3295 Pristojbe i naknade | C68: 83.83
A69: 3299 Ostali nespomenuti rashodi poslovanja | C69: 1222.98
A70: 34 Financijski rashodi | B70: 209.64 | C70: 2000.4 | D70: 954.21
A71: 3431 Bankarske usluge i usluge platnog prometa | C71: 1960.76
A72: 3433 Zatezne kamate | C72: 39.64
A73: Izvor: 44 Prihodi za decentralizirane funkcije | B73: 164579 | C73: 164063.67 | D73: 99.69
A74: 32 Materijalni rashodi | B74: 164114.47 | C74: 163599.14 | D74: 99.69
A75: 3211 Službena putovanja | C75: 5519.49
A76: 3212 Naknade za prijevoz, za rad na terenu i odvojeni život | C76: 60708.01
A77: 3213 Stručno usavršavanje zaposlenika | C77: 135.5
A78: 3221 Uredski materijal i ostali materijalni rashodi | C78: 8536.13
A79: 3222 Materijal i sirovine | C79: 4279.87
A80: 3223 Energija | C80: 45478.04
A81: 3224 Materijal i dijelovi za tekuće i investicijsko održavanje | C81: 1181.7
A82: 3225 Sitni inventar i auto gume | C82: 218.94
A83: 3227 Službena, radna i zaštitna odjeća i obuća | C83: 541.8
A84: 3231 Usluge telefona, pošte i prijevoza | C84: 4044.51
A85: 3232 Usluge tekućeg i investicijskog održavanja | C85: 5398.59
A86: 3234 Komunalne usluge | C86: 22831.25
A87: 3236 Zdravstvene i veterinarske usluge | C87: 2276.52
A88: 3237 Intelektualne i osobne usluge | C88: 125
A89: 3238 Računalne usluge | C89: 2080.63
A90: 3239 Ostale usluge | C90: 208.16
A91: 3294 Članarine i norme | C91: 35
A92: 34 Financijski rashodi | B92: 464.53 | C92: 464.53 | D92: 100
A93: 3431 Bankarske usluge i usluge platnog prometa | C93: 464.53
A94: Izvor: 48 Prenesena sredstva - namjenski prihodi | B94: 6557.64 | C94: 6557.64 | D94: 100
A95: 32 Materijalni rashodi | B95: 6557.64 | C95: 6557.64 | D95: 100
A96: 3222 Materijal i sirovine | C96: 1052.93
A97: 3224 Materijal i dijelovi za tekuće i investicijsko održavanje | C97: 518.08
A98: 3225 Sitni inventar i auto gume | C98: 588.03
A99: 3232 Usluge tekućeg i investicijskog održavanja | C99: 1960.52
A100: 3237 Intelektualne i osobne usluge | C100: 2438.08
A101: Izvor: 52 Pomoći - proračunski korisnici | B101: 2143356.56 | C101: 2391166.85 | D101: 111.56
A102: 31 Rashodi za zaposlene | B102: 2129642.27 | C102: 2377713.94 | D102: 111.65
A103: 3111 Plaće za redovan rad | C103: 1926917.05
A104: 3113 Plaće za prekovremeni rad | C104: 36434.09
A105: 3121 Ostali rashodi za zaposlene | C105: 88659.5
A106: 3132 Doprinosi za obvezno zdravstveno osiguranje | C106: 325669.94
A107: 3133 Doprinosi za obvezno osiguranje u slučaju nezaposlenosti | C107: 33.36
A108: 32 Materijalni rashodi | B108: 12213.23 | C108: 11151.5 | D108: 91.31
A109: 3211 Službena putovanja | C109: 1071.96
A110: 3221 Uredski materijal i ostali materijalni rashodi
A111: 3222 Materijal i sirovine
A112: 3236 Zdravstvene i veterinarske usluge
A113: 3237 Intelektualne i osobne usluge | C113: 2266.94
A114: 3239 Ostale usluge | C114: 1842.41
A115: 3241 Naknade troškova osobama izvan radnog odnosa | C115: 280.1
A116: 3295 Pristojbe i naknade | C116: 5192.38
A117: 3296 Troškovi sudskih postupaka | C117: 497.71
A118: 34 Financijski rashodi | B118: 1373.97 | C118: 1891.15 | D118: 137.64
A119: 3433 Zatezne kamate | C119: 1891.15
A120: 37 Naknade građanima i kućanstvima na temelju osiguranja i druge naknade | B120: 127.09 | C120: 410.26 | D120: 322.81
A121: 3722 Naknade građanima i kućanstvima u naravi | C121: 410.26
A122: Izvor: 58 Prenesena sredstva - pomoći | B122: 409.82 | C122: 409.82 | D122: 100
A123: 32 Materijalni rashodi | B123: 409.82 | C123: 409.82 | D123: 100
A124: 3221 Uredski materijal i ostali materijalni rashodi | C124: 409.82
A125: 3222 Materijal i sirovine
A126: 3225 Sitni inventar i auto gume
A127: 37 Naknade građanima i kućanstvima na temelju osiguranja i druge naknade
A128: 3722 Naknade građanima i kućanstvima u naravi
A129: Izvor: 62 Donacije - proračunski korisnici | B129: 1240.07 | C129: 1240.08 | D129: 100
A130: 32 Materijalni rashodi | B130: 1240.07 | C130: 1240.08 | D130: 100
A131: 3211 Službena putovanja | C131: 656.64
A132: 3241 Naknade troškova osobama izvan radnog odnosa | C132: 583.44
A133: T 550102 Investicijsko održavanje objekata i opreme | B133: 105097.05 | C133: 104879.8 | D133: 99.79
A134: Izvor: 11 Opći prihodi i primici | B134: 2500 | C134: 2500 | D134: 100
A135: 32 Materijalni rashodi | B135: 2500 | C135: 2500 | D135: 100
A136: 3232 Usluge tekućeg i investicijskog održavanja | C136: 2500
A137: Izvor: 18 Prenesena sredstva - opći prihodi i primici | B137: 102597.05 | C137: 102379.8 | D137: 99.79
A138: 32 Materijalni rashodi | B138: 102597.05 | C138: 102379.8 | D138: 99.79
A139: 3232 Usluge tekućeg i investicijskog održavanja | C139: 102379.8
A140: Program: 5502 Unapređenje kvalitete odgojno obrazovnog sustava | B140: 1355697.11 | C140: 1248027.8 | D140: 92.06
A141: A 550205 Sufinanciranje rada pomoćnika u nastavi | B141: 3204.33
A142: Izvor: 11 Opći prihodi i primici | B142: 2356.74
A143: 31 Rashodi za zaposlene | B143: 2356.74
A144: Izvor: 51 Pomoći | B144: 847.59
A145: 31 Rashodi za zaposlene | B145: 688.86
A146: 32 Materijalni rashodi | B146: 158.73
A147: T 550207 EU projekti kod proračunskih korisnika - SŠ i učenički domovi
A148: Izvor: 52 Pomoći - proračunski korisnici
A149: 32 Materijalni rashodi
A150: 3211 Službena putovanja
A151: A 550216 Program "Zdravlje i higijena" | B151: 1200 | C151: 1200 | D151: 100
A152: Izvor: 11 Opći prihodi i primici | B152: 1200 | C152: 1200 | D152: 100
A153: 32 Materijalni rashodi | B153: 700 | C153: 700 | D153: 100
A154: 3221 Uredski materijal i ostali materijalni rashodi | C154: 700
A155: 37 Naknade građanima i kućanstvima na temelju osiguranja i druge naknade | B155: 500 | C155: 500 | D155: 100
A156: 3722 Naknade građanima i kućanstvima u naravi | C156: 500
A157: K 550218 Unaprjeđenje infrastrukture Medicinske škole - regionalnog centra kompetentnosti u sektoru zdravstva - EU projekt | B157: 1348927.96 | C157: 1244462.98 | D157: 92.26
A158: Izvor: 11 Opći prihodi i primici | B158: 589996.21 | C158: 589996.21 | D158: 100
A159: 32 Materijalni rashodi | B159: 13859.2 | C159: 13859.2 | D159: 100
A160: 3233 Usluge promidžbe i informiranja | C160: 265.45
A161: 3234 Komunalne usluge | C161: 2431.25
A162: 3239 Ostale usluge | C162: 11162.5
A163: 45 Rashodi za dodatna ulaganja na nefinancijskoj imovini | B163: 576137.01 | C163: 576137.01 | D163: 100
A164: 4511 Dodatna ulaganja na građevinskim objektima | C164: 576137.01
A165: Izvor: 52 Pomoći - proračunski korisnici | B165: 238931.75 | C165: 197226.09 | D165: 82.54
A166: 42 Rashodi za nabavu proizvedene dugotrajne imovine | B166: 161563.84
A167: 45 Rashodi za dodatna ulaganja na nefinancijskoj imovini | B167: 77367.91 | C167: 197226.09 | D167: 254.92
A168: 4511 Dodatna ulaganja na građevinskim objektima | C168: 197226.09
A169: Izvor: 83 Namjenski primici-proračunski korisnici | B169: 520000 | C169: 457240.68 | D169: 87.93
A170: 42 Rashodi za nabavu proizvedene dugotrajne imovine | B170: 287488.87 | C170: 453643.65 | D170: 157.8
A171: 4221 Uredska oprema i namještaj | C171: 17194.18
A172: 4224 Medicinska i laboratorijska oprema | C172: 364492.44
A173: 4227 Uređaji, strojevi i oprema za ostale namjene | C173: 71957.03
A174: 45 Rashodi za dodatna ulaganja na nefinancijskoj imovini | B174: 232511.13 | C174: 3597.03 | D174: 1.55
A175: 4511 Dodatna ulaganja na građevinskim objektima | C175: 3597.03
A176: A 550221 Osiguranje besplatnih zaliha menstrualnih higijenskih potrepština | B176: 2364.82 | C176: 2364.82 | D176: 100
A177: Izvor: 52 Pomoći - proračunski korisnici | B177: 2364.82 | C177: 2364.82 | D177: 100
A178: 38 Ostali rashodi | B178: 2364.82 | C178: 2364.82 | D178: 100
A179: 3812 Tekuće donacije u naravi | C179: 2364.82
A180: Program: 5504 Kapitalna ulaganja u odgojno obrazovnu infrastrukturu | B180: 6453.82 | C180: 5105.49 | D180: 79.11
A181: K 550401 Opremanje ustanova školstva | B181: 6453.82 | C181: 5105.49 | D181: 79.11
A182: Izvor: 43 Prihodi za posebne namjene - proračunski korisnici | B182: 2896.65 | C182: 274.17 | D182: 9.47
A183: 42 Rashodi za nabavu proizvedene dugotrajne imovine | B183: 2896.65 | C183: 274.17 | D183: 9.47
A184: 4221 Uredska oprema i namještaj | C184: 265
A185: 4223 Oprema za održavanje i zaštitu
A186: 4224 Medicinska i laboratorijska oprema
A187: 4241 Knjige | C187: 9.17
A188: Izvor: 44 Prihodi za decentralizirane funkcije | B188: 845.11 | C188: 845.11 | D188: 100
A189: 42 Rashodi za nabavu proizvedene dugotrajne imovine | B189: 845.11 | C189: 845.11 | D189: 100
A190: 4227 Uređaji, strojevi i oprema za ostale namjene | C190: 845.11
A191: Izvor: 48 Prenesena sredstva - namjenski prihodi | B191: 1057.88 | C191: 1057.88 | D191: 100
A192: 42 Rashodi za nabavu proizvedene dugotrajne imovine | B192: 1057.88 | C192: 1057.88 | D192: 100
A193: 4221 Uredska oprema i namještaj | C193: 800.38
A194: 4223 Oprema za održavanje i zaštitu | C194: 257.5
A195: 4224 Medicinska i laboratorijska oprema
A196: 4227 Uređaji, strojevi i oprema za ostale namjene
A197: Izvor: 52 Pomoći - proračunski korisnici | B197: 265.45 | C197: 1539.6 | D197: 580
A198: 42 Rashodi za nabavu proizvedene dugotrajne imovine | B198: 265.45 | C198: 1539.6 | D198: 580
A199: 4241 Knjige | C199: 1539.6
A200: Izvor: 58 Prenesena sredstva - pomoći
A201: 42 Rashodi za nabavu proizvedene dugotrajne imovine
A202: 4241 Knjige
A203: Izvor: 62 Donacije - proračunski korisnici | B203: 1388.73 | C203: 1388.73 | D203: 100
... 4 more rows

Sheet višak-manjak
A4: KORIŠTENJE PRENESENOG VIŠKA
A6: Izvor financiranja 93 Vlastiti prihodi - preneseni višak | G6: u EUR-ima
A7: Račun prihoda/ primitka | B7: Naziv računa | C7: Ostvarenje/ izvršenje 2022. | D7: Izvorni plan / Rebalans 2023. | E7: Ostvarenje/ izvršenje 2023. | F7: Indeks | G7: Indeks
A9: 1 | C9: 2 | D9: 4 | E9: 5 | F9: 6=5/2*100 | G9: 7=5/4*100
A10: 922 | B10: Višak/manjak prihoda | C10: =SUM(C11) -> 3235.28 | D10: =SUM(D11) -> 7291.46 | E10: =SUM(E11) -> 7291.46 | G10: =E10/D10*100 -> 100
A11: 92211 | B11: Višak prihoda poslovanja | C11: 3235.28 | D11: 7291.46 | E11: 7291.46 | G11: =E11/D11*100 -> 100
A12: UKUPNO Izvor financiranja Vlastiti prihodi - preneseni višak | C12: =C10 -> 3235.28 | D12: =D10 -> 7291.46 | E12: =E10 -> 7291.46 | G12: =E12/D12*100 -> 100
A14: Izvor financiranja 94 Prihodi za posebne namjene - preneseni višak | G14: u EUR-ima
A15: Račun prihoda/ primitka | B15: Naziv računa | C15: =+C7 -> Ostvarenje/ izvršenje 2022. | D15: =+D7 -> Izvorni plan / Rebalans 2023. | E15: =+E7 -> Ostvarenje/ izvršenje 2023. | F15: Indeks | G15: Indeks
A17: 1 | C17: 2 | D17: 4 | E17: 5 | F17: 6=5/2*100 | G17: 7=5/4*100
A18: 922 | B18: Višak/manjak prihoda | C18: =SUM(C19:C20) -> 14049.64 | D18: =SUM(D19:D20) -> 7615.52 | E18: 7615.52 | F18: =E18/C18*100 -> 54.20437819 | G18: =E18/D18*100 -> 100
A19: 92211 | B19: Višak prihoda poslovanja | C19: 3583.52 | D19: 6557.64 | E19: 6557.64 | F19: =E19/C19*100 -> 182.9943742 | G19: =E19/D19*100 -> 100
A20: 92212 | B20: Višak prihoda od nefinancijske imovine | C20: 10466.12 | D20: 1057.88 | E20: 1057.88 | F20: =E20/C20*100 -> 10.10766167 | G20: =E20/D20*100 -> 100
A21: UKUPNO Izvor financiranja Prihodi za posebne namjene - preneseni višak | C21: =C18 -> 14049.64 | D21: =D18 -> 7615.52 | E21: =E18 -> 7615.52 | F21: =E21/C21*100 -> 54.20437819 | G21: =E21/D21*100 -> 100
A23: Izvor financiranja 95 Pomoći - preneseni višak | G23: u EUR-ima
A24: Račun prihoda/ primitka | B24: Naziv računa | C24: =+C7 -> Ostvarenje/ izvršenje 2022. | D24: =+D7 -> Izvorni plan / Rebalans 2023. | E24: =+E7 -> Ostvarenje/ izvršenje 2023. | F24: Indeks | G24: Indeks
A26: 1 | C26: 2 | D26: 4 | E26: 5 | F26: 6=5/2*100 | G26: 7=5/4*100
A27: 922 | B27: Višak/manjak prihoda | C27: =SUM(C28:C29) -> 1392.65 | D27: =SUM(D28:D29) -> 409.82 | E27: 409.82 | F27: =E27/C27*100 -> 29.42735073 | G27: =E27/D27*100 -> 100
A28: 92211 | B28: Višak prihoda poslovanja | C28: 1392.65 | D28: 409.82 | E28: 409.82 | F28: =E28/C28*100 -> 29.42735073 | G28: =E28/D28*100 -> 100
A29: 92212 | B29: Višak prihoda od nefinancijske imovine | G29: =E29/D29*100 -> 
A30: UKUPNO Izvor financiranja Pomoći | C30: =C27 -> 1392.65 | D30: =D27 -> 409.82 | E30: =E27 -> 409.82 | F30: =E30/C30*100 -> 29.42735073 | G30: =E30/D30*100 -> 100
A34: POKRIĆE MANJKA
A36: Izvor financiranja 95 Pomoći - manjak | G36: u EUR-ima
A37: Račun rashoda/ izdatka | B37: Naziv računa | C37: =+C7 -> Ostvarenje/ izvršenje 2022. | D37: =+D7 -> Izvorni plan / Rebalans 2023. | E37: =+E7 -> Ostvarenje/ izvršenje 2023. | F37: Indeks | G37: Indeks
A39: 1 | C39: 2 | D39: 4 | E39: 5 | F39: 6=5/2*100 | G39: 7=5/4*100
A40: 922 | B40: Rezultat poslovanja | C40: =+C41 -> 25590.5 | D40: =+D41 -> 31154.23 | E40: =+E41 -> 31154.23 | G40: =E40/D40*100 -> 100
A41: 92221 | B41: Manjak prihoda poslovanja | C41: 25590.5 | D41: 31154.23 | E41: 31154.23 | G41: =E41/D41*100 -> 100
A42: UKUPNO A/Tpr./Kpr. | C42: =+C41 -> 25590.5 | D42: =+D41 -> 31154.23 | E42: =+E41 -> 31154.23 | G42: =E42/D42*100 -> 100

Sheet korištenje EU sredstava
A3: Unaprjeđenje infrastrukture Medicinske škole u Rijeci - RCK EU projekt
A6: Oznaka | B6: Godišnji plan (1) | C6: Ostvarenje (2) | D6: Ind. (3.) (2./1.)
A7: SVEUKUPNO | B7: 1348927.96 | C7: 1244462.98 | D7: 92.26
A8: 1008001 PRORAČUN PRIMORSKO-GORANSKA ŽUPANIJE | B8: 1348927.96 | C8: 1244462.98 | D8: 92.26
A9: Glava: 5 ŽUPANIJSKE USTANOVE SREDNJEG ŠKOLSTVA | B9: 1348927.96 | C9: 1244462.98 | D9: 92.26
A10: Program: 5502 Unapređenje kvalitete odgojno obrazovnog sustava | B10: 1348927.96 | C10: 1244462.98 | D10: 92.26
A11: K 550218 Unaprjeđenje infrastrukture Medicinske škole - regionalnog centra kompetentnosti u sektoru zdravstva - EU projekt | B11: 1348927.96 | C11: 1244462.98 | D11: 92.26
A12: Izvor 1 - Opći prihodi i primici | B12: =SUM(B13:B17) -> 589996.21 | C12: =SUM(C13:C17) -> 589996.21 | D12: =+C12/B12*100 -> 100
A13: 3234 Komunalne usluge | B13: 2431.25 | C13: 2431.25 | D13: 100
A14: 3239 Ostale usluge | B14: 11162.5 | C14: 11162.5 | D14: 100
A15: 4511 Dodatna ulaganja na građevinskim objektima | B15: 366406.25 | C15: 366406.25 | D15: 100
A16: 3233 Usluge promidžbe i informiranja | B16: 265.45 | C16: 265.45 | D16: 100
A17: 4511 Dodatna ulaganja na građevinskim objektima | B17: 209730.76 | C17: 209730.76 | D17: 100
A18: Izvor: 5251 Pomoći za provođenje EU projekata - proračunski korisnici | B18: 238931.75 | C18: 197226.09 | D18: 82.54
A19: 4221 Uredska oprema i namještaj | B19: 10528.11
A20: 4224 Medicinska i laboratorijska oprema | B20: 121000
A21: 4227 Uređaji, strojevi i oprema za ostale namjene | B21: 30035.73
A22: 4511 Dodatna ulaganja na građevinskim objektima | B22: 77367.91 | C22: 197226.09 | D22: 254.92
A23: Izvor: 8315 Namjenski primici - srednje škole i učenički domovi | B23: 520000 | C23: 457240.68 | D23: 87.93
A24: 4221 Uredska oprema i namještaj | B24: 19918.01 | C24: 17194.18 | D24: 86.32
A25: 4224 Medicinska i laboratorijska oprema | B25: 168570.86 | C25: 364492.44 | D25: 216.23
A26: 4227 Uređaji, strojevi i oprema za ostale namjene | B26: 99000 | C26: 71957.03 | D26: 72.68
A27: 4511 Dodatna ulaganja na građevinskim objektima | B27: 232511.13 | C27: 3597.03 | D27: 1.55

Sheet posebni izvještaji
D2: MEDICINSKA ŠKOLA U RIJECI - rkp 17546
D7: Izvještaj o stanju potraživanja i dospjelih obveza te o stanju potencijalnih obveza po osnovi sudskih sporova
D9: OPIS | E9: Stanje na dan 31.12.2023.
D10: Nenaplaćena potraživanja | E10: 912.52
D11: Dospjele obveze | E11: 0
D12: Potencijalne obveze po osnovi sudskih sporova | E12: 5764.21
D17: Izvještaj o zaduživanju na domaćem tržištu novca i kapitala
D19: Red. br. | E19: Opis zaduženja po vrsti instrumenta / valutnoj / kamatnoj i ročnoj strukturi | F19: Namjena | G19: Kreditor | H19: Primljeni krediti i zajmovi u tekućoj godini | I19: Stanje glavnice kredita i zajma 31.12.2023.
D20: 1. | E20: Okvirni kredit po žiro računu - kratkoročni do 1 godine | F20: Premostiti vremenski jaz između obveze plaćanja računa za adaptaciju i opremu iz RCK EU projekta do uplate EU sredstava. | G20: ERSTE bank D.D. | H20: 430332.69 | I20: 430332.69
G21: UKUPNO: | H21: =SUM(H20:H20) -> 430332.69 | I21: =SUM(I20:I20) -> 430332.69
D25: Stanje novčanih sredstava na dan 31.12.2023.
D27: Stanje novčanih sredstava na početku izvještajnog razdoblja | E27: 19296.48
D28: Ukupni priljevi na novčane račune i blagajne | E28: 1382370.01
D29: Ukupni odljevi s novčanih računa i blagajni | E29: 1401503.35
D30: Stanje novčanih sredstava na kraju izvještajnog razdoblja | E30: 163.14
